bitfinex-derivatives/quotes_SOLF0:USTF0_20250516
["timestamp","ask_amount","ask_price","bid_price","bid_amount"]
[1747362744460,133.18,173.06,173.04,5.7776]
[1747362744852,133.18,173.06,172.98,3.9463]
[1747362745153,133.18,173.06,172.99,1.44477434]
[1747362745352,133.18,173.06,172.98,3.9463]
[1747362745353,133.18,173.06,173.0,1.44477434]
[1747362745557,133.18,173.06,173.01,1.44477434]
[1747362745854,133.18,173.06,172.98,3.9463]
[1747362746058,133.18,173.06,172.99,1.44476867]
[1747362746260,133.18,173.06,173.02,5.778]
[1747362747353,66.7,173.06,172.99,1.44483163]
[1747362747549,416.28,173.14,173.0,1.44483163]
[1747362747753,66.4,173.13,173.01,1.44479185]
[1747362747953,5.7758,173.1,173.06,5.777]
[1747362748153,66.4,173.13,173.03,1.44479185]
[1747362748356,5.7763,173.09,173.03,5.7777]
[1747362748760,5.7763,173.09,172.98,12.05993341]
[1747362748963,5.7763,173.09,172.99,1.44465859]
[1747362749156,5.7763,173.09,173.0,1.44465859]
[1747362749355,5.7764,173.08,173.01,1.44465859]
[1747362749654,66.4,173.13,173.02,1.44465859]
[1747362749855,5.776,173.09,172.98,12.05993341]
[1747362750162,5.776,173.09,173.03,5.7777]
[1747362750363,5.776,173.09,173.0,1.44461965]
[1747362750562,5.776,173.09,173.01,1.44461965]
[1747362750857,482.98,173.14,173.02,67.80461965]
[1747362751059,66.7,173.14,173.03,1.44461965]
[1747362751265,133.06,173.14,173.04,1.44461965]
[1747362751456,133.06,173.14,173.05,1.44461965]
[1747362751765,133.04,173.14,173.08,5.7761]
[1747362751963,138.8144,173.14,173.04,1.44429001]
[1747362752163,138.8144,173.14,173.05,1.44429001]
[1747362752354,138.8144,173.14,173.08,5.7761]
[1747362753163,133.04,173.14,173.06,7.22091608]
[1747362753462,133.04,173.14,173.03,3.36591608]
[1747362754064,133.04,173.14,173.03,1.44421608]
[1747362754254,133.04,173.14,173.02,132.72]
[1747362754451,5.7766,173.08,173.03,5.7779]
[1747362754653,66.3,173.09,173.02,66.36]
[1747362754965,5.7779,173.04,172.99,5.779]
[1747362755159,72.0779,173.04,172.99,5.779]
[1747362755359,66.3,173.04,172.98,66.36]
[1747362755559,66.3,173.04,172.94,66.36]
[1747362755560,132.66,173.04,172.94,66.36]
[1747362756465,132.66,173.04,172.98,5.7795]
[1747362756656,132.66,173.04,172.94,66.36]
[1747362756963,132.66,173.04,172.95,1.4450997]
[1747362757163,5.7781,173.03,172.98,5.7795]
[1747362757564,5.8587,173.08,172.96,1.4450997]
[1747362757762,66.36,173.07,173.03,5.778]
[1747362757970,132.64,173.07,172.98,1.4450997]
[1747362758259,132.64,173.07,172.99,66.36]
[1747362758457,132.64,173.07,173.0,3.3332798]
[1747362758458,66.28,173.07,173.0,3.3332798]
[1747362758663,66.28,173.07,173.0,7.1076798]
[1747362758865,488.2554,173.11,173.06,5.777]
[1747362759167,66.26,173.1,173.0,7.1076798]
[1747362759661,66.26,173.1,173.01,1.4447798]
[1747362760165,66.24,173.13,173.02,8.11363341]
[1747362760466,66.24,173.13,173.03,66.24]
[1747362760662,66.24,173.13,173.04,66.36]
[1747362761262,66.24,173.13,173.1,5.7755]
[1747362761460,66.36,173.15,173.04,66.36]
[1747362761667,66.22,173.14,173.08,5.7763]
[1747362761859,66.22,173.14,173.04,66.36]
[1747362762568,71.9944,173.14,173.05,1.44427401]
[1747362763067,71.9944,173.14,173.09,5.7757]
[1747362763668,66.22,173.14,173.04,66.36]
[1747362763873,66.22,173.14,173.05,1.4442862]
[1747362764056,66.36,173.15,173.05,1.4442862]
[1747362764360,132.56,173.15,173.05,1.4442862]
[1747362764562,5.7744,173.14,173.09,5.7757]
[1747362764859,71.9544,173.14,173.09,5.7757]
[1747362765460,5.7747,173.13,173.09,5.7757]
[1747362765869,66.18,173.14,173.09,5.7757]
[1747362766569,71.9546,173.14,173.09,5.7757]
[1747362767070,66.18,173.14,173.07,5.7763]
[1747362767670,5.7753,173.12,173.07,5.7763]
[1747362767967,66.18,173.14,173.04,66.36]
[1747362768172,66.36,173.15,173.04,66.36]
[1747362768473,66.36,173.15,173.05,1.44424475]
[1747362769472,66.36,173.15,173.12,5.7747]
[1747362770970,5.7729,173.19,173.14,5.7743]
[1747362771172,66.1,173.19,173.09,66.34]
[1747362771477,66.1,173.19,173.09,68.1547]
[1747362771975,66.1,173.19,173.1,1.44383743]
[1747362772275,66.34,173.2,173.1,10.08900322]
[1747362772873,66.34,173.2,173.17,5.7733]
[1747362773478,66.34,173.2,173.16,5.7736]
[1747362773964,66.34,173.2,173.1,10.08900322]
[1747362774167,66.34,173.2,173.09,68.1547]
[1747362774770,66.34,173.2,173.11,5.7752]
[1747362774971,66.34,173.2,173.09,68.1547]
[1747362775167,5.7746,173.14,173.09,73.9304]
[1747362775374,5.7746,173.14,173.09,68.1547]
[1747362775673,66.06,173.17,173.09,66.34]
[1747362776378,66.06,173.17,173.09,72.1159]
[1747362776875,5.7746,173.14,173.09,72.1159]
[1747362777279,5.7746,173.14,173.1,5.7756]
[1747362779279,66.06,173.17,173.09,72.1159]
[1747362779880,5.7746,173.14,173.1,5.7756]
[1747362780380,5.7751,173.12,173.09,66.34]
[1747362780681,66.06,173.17,173.09,66.34]
[1747362781075,66.06,173.17,173.09,72.116]
[1747362781984,66.06,173.17,173.1,5.7756]
[1747362782171,66.06,173.17,173.09,66.34]
[1747362782678,66.06,173.17,173.05,1.9033]
[1747362782877,66.06,173.17,173.05,1.44440983]
[1747362783081,1.8106,173.16,173.04,1.8533]
[1747362783286,65.98,173.15,173.05,1.44442659]
[1747362783482,65.98,173.15,173.04,1.8533]
[1747362783679,65.98,173.15,173.05,1.44442645]
[1747362784080,65.98,173.15,173.04,1.8533]
[1747362784494,65.98,173.15,173.03,65.98]
[1747362784877,8.64516579,173.14,172.99,67.8299]
[1747362785080,8.64516579,173.14,173.0,1.44480015]
[1747362785274,8.64516579,173.14,172.99,67.8299]
[1747362785480,5.7771,173.06,173.01,5.7784]
[1747362785680,71.7171,173.06,173.01,5.7784]
[1747362785989,5.7774,173.05,173.01,5.7784]
[1747362786280,65.94,173.06,172.99,67.8299]
[1747362786486,65.94,173.06,173.0,1.44489327]
[1747362786779,65.94,173.06,173.01,1.44489327]
[1747362786983,65.94,173.06,172.99,67.8299]
[1747362787182,65.94,173.06,173.0,1.44479076]
[1747362787381,65.92,173.08,173.04,5.7776]
[1747362787582,65.92,173.08,173.02,1.44471077]
[1747362787781,65.92,173.08,172.99,67.8299]
[1747362788085,65.92,173.08,173.0,1.44471077]
[1747362788287,65.92,173.08,173.01,1.44471077]
[1747362788485,65.92,173.08,172.99,67.8299]
[1747362788680,5.777,173.07,173.02,5.7781]
[1747362789486,65.92,173.08,173.0,7.22348415]
[1747362789787,65.92,173.08,172.99,67.8299]
[1747362789982,71.6966,173.08,173.03,5.7777]
[1747362790180,65.92,173.08,172.99,67.8299]
[1747362790383,65.92,173.08,173.0,1.44481187]
[1747362790584,5.7769,173.07,173.02,5.7781]
[1747362790990,65.92,173.08,173.02,5.7781]
[1747362791186,65.92,173.08,173.0,1.44484719]
[1747362791387,65.92,173.08,173.01,1.44484719]
[1747362791587,65.92,173.08,173.02,1.44471475]
[1747362791783,65.92,173.08,172.99,67.8299]
[1747362791991,65.92,173.08,173.0,1.44470971]
[1747362792190,65.92,173.08,173.01,1.44470971]
[1747362792491,65.88,173.08,173.04,5.7776]
[1747362792988,65.88,173.08,173.01,5.7787]
[1747362793386,5.7776,173.05,173.0,1.44481264]
[1747362793586,65.88,173.08,172.99,66.0]
[1747362793982,5.7781,173.03,172.99,66.0]
[1747362794193,5.7781,173.03,172.99,71.7791]
[1747362794394,5.7787,173.01,172.99,66.0]
[1747362794596,65.86,173.03,172.95,415.94]
[1747362794792,65.86,173.03,172.97,5.7798]
[1747362795097,65.86,173.03,172.94,66.0]
[1747362795283,65.86,173.03,172.95,1.44517315]
[1747362795489,5.7784,173.02,172.96,1.44517315]
[1747362795690,5.7784,173.02,172.95,1.44517315]
[1747362795888,5.7784,173.02,172.96,1.44513566]
[1747362796095,71.6381,173.03,172.94,66.0]
[1747362796394,71.6381,173.03,172.95,1.44512309]
[1747362796594,71.6381,173.03,172.96,1.44512309]
[1747362796895,71.6381,173.03,172.99,5.7792]
[1747362797093,8.64516579,173.1,172.96,1.44512309]
[1747362797296,66.02,173.06,172.97,1.44512309]
[1747362797493,66.02,173.06,172.94,66.0]
[1747362797789,66.02,173.06,172.95,1.44495521]
[1747362797993,66.02,173.06,172.96,1.44495521]
[1747362798195,71.797,173.06,173.02,5.7781]
[1747362798987,66.02,173.06,173.03,5.7779]
[1747362799691,66.02,173.06,172.96,1.44491998]
[1747362799692,66.02,173.06,172.97,1.44491998]
[1747362799893,71.797,173.06,172.98,1.44491998]
[1747362800090,66.02,173.06,172.96,1.44491998]
[1747362800286,5.778,173.03,172.99,5.7791]
[1747362800496,71.578,173.03,172.99,5.7791]
[1747362801091,65.8,173.03,173.0,5.7789]
[1747362802984,65.8,173.03,172.94,66.0]
[1747362803390,65.8,173.03,172.97,5.78]
[1747362804699,65.76,173.03,172.95,1.4451204]
[1747362804997,65.76,173.03,173.0,5.7788]
[1747362805197,65.76,173.03,172.95,1.4451204]
[1747362805397,65.76,173.03,172.96,1.4451204]
[1747362805598,65.76,173.03,172.95,1.4451204]
[1747362805902,65.76,173.03,172.96,1.4451204]
[1747362806197,65.76,173.03,172.95,1.4451204]
[1747362806399,65.76,173.03,172.95,1.44502926]
[1747362806699,65.76,173.03,172.94,66.0]
[1747362807092,5.7789,173.01,172.94,66.0]
[1747362807394,66.02,173.0,172.9,66.02]
[1747362807597,66.02,173.0,172.91,1.44536069]
[1747362807798,5.7799,172.98,172.91,1.44536069]
[1747362807995,65.74,172.97,172.91,1.44536069]
[1747362808199,65.74,172.97,172.86,69.8113]
[1747362808399,5.7808,172.95,172.9,5.7821]
[1747362808695,65.74,172.97,172.9,5.7821]
[1747362808998,5.7807,172.95,172.91,5.782]
[1747362809801,5.7811,172.94,172.9,5.7823]
[1747362811001,65.7,172.95,172.86,66.02]
[1747362811594,65.7,172.95,172.86,71.8036]
[1747362812095,65.7,172.95,172.86,66.02]
[1747362813403,71.4807,172.95,172.86,66.02]
[1747362813907,65.7,172.95,172.86,66.02]
[1747362814400,5.7379,172.96,172.86,66.02]
[1747362814602,131.4,172.95,172.86,66.02]
[1747362814900,137.1807,172.95,172.86,66.02]
[1747362815101,131.4,172.95,172.86,66.02]
[1747362815604,137.1807,172.95,172.91,5.7817]
[1747362816004,131.4,172.95,172.86,66.02]
[1747362816199,131.38,172.95,172.86,66.02]
[1747362816405,131.38,172.95,172.87,1.813]
[1747362816802,65.66,172.95,172.94,5.781]
[1747362817404,65.66,172.98,172.88,13.96732631]
[1747362817805,65.66,172.98,172.96,5.7801]
[1747362818506,65.64,172.99,172.88,12.52186579]
[1747362818908,65.64,172.99,172.97,5.7797]
[1747362820113,65.72,173.0,172.97,5.7797]
[1747362820311,131.34,173.0,172.97,5.7797]
[1747362821613,131.34,173.0,172.92,65.72]
[1747362821911,131.34,173.0,172.88,143.84186579]
[1747362822310,5.7798,172.98,172.88,143.84186579]
[1747362823214,131.32,173.0,172.89,1.44554761]
[1747362823414,131.32,173.0,172.9,1.44554761]
[1747362823608,131.32,173.0,172.89,1.44532185]
[1747362824017,5.7801,172.97,172.92,5.7814]
[1747362824214,131.32,173.0,172.89,1.44532185]
[1747362824715,5.78,172.97,172.92,5.7816]
[1747362826220,131.32,173.0,172.9,5.782]
[1747362826422,131.32,173.0,172.88,69.5967]
[1747362827020,131.32,173.0,172.89,1.44566798]
[1747362827420,131.32,173.0,172.9,1.44566798]
[1747362827615,65.54,172.99,172.96,5.7803]
[1747362827922,131.26,173.0,172.92,1.44566798]
[1747362828122,131.26,173.0,172.97,5.7798]
[1747362828420,65.72,173.0,172.97,5.7798]
[1747362828717,65.72,173.0,172.93,65.72]
[1747362828922,65.72,173.0,172.94,1.44566798]
[1747362829220,65.72,173.0,172.94,1.44518846]
[1747362829424,5.7395,173.06,172.95,1.44518846]
[1747362829612,5.7395,173.06,172.96,1.44518846]
[1747362829613,71.2595,173.06,172.96,1.44518846]
[1747362829812,77.0368,173.06,172.97,1.44518846]
[1747362830013,77.0368,173.06,172.96,1.44518846]
[1747362830213,65.72,173.07,172.97,1.44518846]
[1747362830417,65.52,173.06,172.96,1.44518846]
[1747362830723,65.52,173.06,172.97,1.44518846]
[1747362830922,5.7776,173.05,172.99,5.7793]
[1747362831616,5.7777,173.04,172.99,5.7793]
[1747362832619,65.52,173.06,172.98,1.44518846]
[1747362832828,65.72,173.07,172.96,1.44490217]
[1747362833025,131.2,173.07,172.97,1.44490217]
[1747362833221,131.2,173.07,172.98,65.72]
[1747362833421,131.2,173.07,173.03,5.7777]
[1747362834726,65.72,173.08,173.0,1.44480878]
[1747362834927,65.46,173.07,172.99,1.44480878]
[1747362835122,65.72,173.08,173.0,1.44479774]
[1747362835327,65.72,173.08,173.01,1.44479774]
[1747362835529,65.72,173.08,173.02,1.44479774]
[1747362835730,65.72,173.08,172.99,1.44479774]
[1747362836028,65.72,173.08,173.0,1.44479774]
[1747362836231,65.72,173.08,173.05,5.777]
[1747362837525,65.72,173.08,173.06,5.7769]
[1747362840223,65.72,173.08,173.05,5.7772]
[1747362840729,65.72,173.08,172.99,1.44453975]
[1747362841536,5.7776,173.05,173.01,5.7786]
[1747362841738,65.38,173.05,172.98,65.72]
[1747362842134,71.1576,173.05,172.98,65.72]
[1747362842442,65.38,173.05,172.98,65.72]
[1747362842629,65.72,173.08,173.05,5.777]
[1747362842825,65.36,173.09,172.99,65.36]
[1747362843032,65.36,173.09,173.0,1.44466678]
[1747362843235,65.36,173.09,173.05,5.7772]
[1747362843735,65.36,173.09,173.01,5.7786]
[1747362844326,65.36,173.09,172.99,65.36]
[1747362844737,5.7769,173.07,172.99,65.36]
[1747362845034,65.36,173.09,173.02,5.778]
[1747362845229,5.7773,173.06,173.02,5.778]
[1747362848440,5.7767,173.07,173.03,5.778]
[1747362849039,65.3,173.09,172.99,1.44476164]
[1747362849240,65.3,173.09,173.0,1.44476164]
[1747362849537,65.3,173.09,172.99,1.44476164]
[1747362850439,65.3,173.09,172.98,65.72]
[1747362850833,5.7771,173.06,173.02,5.7783]
[1747362851033,65.3,173.09,173.02,5.7783]
[1747362851938,65.3,173.09,172.99,1.44476777]
[1747362852339,65.36,173.11,173.09,5.7758]
[1747362852536,130.62,173.11,173.09,5.7758]
[1747362853135,65.36,173.11,173.1,5.7756]
[1747362853335,65.24,173.13,173.05,5.40557993]
[1747362853647,130.6,173.15,173.05,5.40557993]
[1747362855041,130.6,173.15,173.11,5.7751]
[1747362855243,200.2475526,173.19,173.08,65.36]
[1747362855441,200.2475526,173.19,173.09,3.7012]
[1747362855736,65.22,173.18,173.12,5.7747]
[1747362855936,65.22,173.18,173.09,3.7012]
[1747362856535,65.22,173.18,173.08,65.36]
[1747362857240,3.7674,173.17,173.04,134.361]
[1747362857435,3.7674,173.17,173.05,1.44419511]
[1747362858039,3.7674,173.17,173.04,134.361]
[1747362858439,5.7748,173.13,173.08,5.7761]
[1747362858639,65.18,173.12,173.08,5.7761]
[1747362858834,70.9552,173.12,173.08,5.7761]
[1747362859041,65.18,173.12,173.07,5.7766]
[1747362859343,65.18,173.12,173.04,134.361]
[1747362859644,70.955,173.12,173.08,5.776]
[1747362860444,65.18,173.12,173.04,134.361]
[1747362860648,65.18,173.12,173.05,1.44433731]
[1747362860848,65.18,173.12,173.05,1.44432345]
[1747362861342,69.1274,173.17,173.06,1.44432345]
[1747362861534,65.14,173.16,173.07,1.44432345]
[1747362861736,65.14,173.16,173.12,5.7747]
[1747362861937,65.14,173.16,173.06,1.44432345]
[1747362862139,65.14,173.16,173.05,1.44432345]
[1747362862334,65.14,173.16,173.06,1.44432345]
[1747362862539,65.14,173.16,173.05,1.44432345]
[1747362862741,70.9139,173.16,173.12,5.7749]
[1747362864443,65.14,173.16,173.05,1.44432345]
[1747362864643,130.48,173.17,173.06,10.08903564]
[1747362864846,65.36,173.17,173.07,1.44432345]
[1747362865540,134.8875526,173.19,173.08,1.44432345]
[1747362865741,134.8875526,173.19,173.09,131.88432345]
[1747362865951,130.44,173.21,173.1,11.97343564]
[1747362866338,130.44,173.21,173.11,3.8116]
[1747362866847,130.44,173.21,173.17,5.7731]
[1747362867049,136.212,173.21,173.11,3.8116]
[1747362867547,130.44,173.21,173.11,3.8116]
[1747362868047,130.44,173.21,173.17,5.7731]
[1747362868750,65.34,173.21,173.17,5.7731]
[1747362868947,130.4,173.21,173.17,5.7731]
[1747362869846,136.1721,173.21,173.17,5.7731]
[1747362870149,136.1521,173.21,173.17,5.7731]
[1747362871647,130.38,173.21,173.11,3.8116]
[1747362872143,130.38,173.21,173.1,1.8844]
[1747362872345,1.9043,173.2,173.1,1.44381353]
[1747362872640,65.02,173.21,173.11,1.44381353]
[1747362872846,135.7717,173.22,173.12,1.44381353]
[1747362873152,130.0,173.22,173.11,5.42641353]
[1747362874150,130.0,173.22,173.11,5.42625931]
[1747362874351,135.7717,173.22,173.11,5.42625931]
[1747362874551,130.0,173.22,173.11,5.42625931]
[1747362874848,65.0,173.22,173.12,1.44365931]
[1747362875250,65.0,173.22,173.13,70.38069832]
[1747362875550,65.0,173.22,173.18,5.7728]
[1747362875849,65.0,173.22,173.19,5.7726]
[1747362876252,65.0,173.22,173.14,65.0]
[1747362879556,65.0,173.22,173.2,5.7723]
[1747362880055,65.0,173.22,173.14,65.0]
[1747362880757,70.7719,173.22,173.17,5.773]
[1747362881151,70.7719,173.22,173.14,65.0]
[1747362881152,65.0,173.22,173.14,65.0]
[1747362881855,5.7722,173.21,173.16,5.7736]
[1747362882155,5.7722,173.21,173.17,5.7733]
[1747362882362,70.7717,173.22,173.14,65.0]
[1747362883161,70.7717,173.22,173.18,5.7727]
[1747362883860,5.772,173.21,173.17,5.7732]
[1747362884062,65.0,173.22,173.14,65.0]
[1747362884560,70.7719,173.22,173.14,65.0]
[1747362884964,65.0,173.22,173.19,5.7724]
[1747362885861,65.0,173.22,173.14,65.0]
[1747362886058,129.86,173.22,173.14,65.0]
[1747362886465,129.86,173.22,173.19,5.7724]
[1747362887270,7.30499832,173.28,173.14,129.84]
[1747362887463,129.84,173.27,173.16,5.40069832]
[1747362888064,129.84,173.27,173.15,6.84421555]
[1747362888373,129.84,173.27,173.15,1.44351723]
[1747362888663,70.7687,173.31,173.26,5.7701]
[1747362888880,64.84,173.3,173.26,5.7701]
[1747362889378,70.609,173.3,173.26,5.7701]
[1747362889771,64.84,173.3,173.27,5.7699]
[1747362891076,64.84,173.3,173.28,5.7696]
[1747362891971,64.84,173.3,173.2,6.84363361]
[1747362892175,65.0,173.31,173.2,6.84363361]
[1747362892378,129.8,173.31,173.23,5.40069832]
[1747362892578,70.7473,173.35,173.3,5.7687]
[1747362892782,64.8,173.34,173.3,5.7687]
[1747362893278,64.8,173.34,173.24,64.98]
[1747362894480,5.7681,173.33,173.28,5.7695]
[1747362894777,5.7681,173.33,173.24,64.98]
[1747362895173,5.7681,173.33,173.28,5.7694]
[1747362895681,64.8,173.34,173.27,5.7699]
[1747362895881,1.8912,173.36,173.24,64.98]
[1747362896076,64.98,173.34,173.24,64.98]
[1747362896578,70.7477,173.34,173.24,64.98]
[1747362897181,70.7477,173.34,173.29,5.769]
[1747362897377,64.98,173.34,173.24,64.98]
[1747362897577,64.98,173.34,173.27,5.77]
[1747362897779,5.7694,173.29,173.24,64.98]
[1747362897978,64.74,173.28,173.19,68.8138]
[1747362898178,64.74,173.28,173.2,1.44297142]
[1747362898478,70.5097,173.28,173.24,5.7707]
[1747362899179,64.74,173.28,173.22,5.7714]
[1747362900584,5.7707,173.25,173.21,5.7719]
[1747362900782,64.74,173.28,173.19,64.98]
[1747362901184,5.7701,173.27,173.22,5.7714]
[1747362901385,64.74,173.28,173.22,5.7714]
[1747362901785,5.7709,173.25,173.21,5.7719]
[1747362902090,64.68,173.24,173.15,68.374]
[1747362902283,5.7222,173.29,173.16,5.40069832]
[1747362902583,64.68,173.27,173.19,5.40069832]
[1747362902786,129.36,173.28,173.19,5.40069832]
[1747362902985,11.17699832,173.37,173.22,5.40069832]
[1747362903186,129.36,173.36,173.22,5.40069832]
[1747362903385,5.7678,173.34,173.29,5.7691]
[1747362903584,64.68,173.35,173.29,5.7691]
[1747362904478,64.68,173.35,173.28,5.7696]
[1747362904680,64.68,173.35,173.22,9.26029832]
[1747362904979,5.7689,173.31,173.26,5.7701]
[1747362905181,64.68,173.35,173.22,9.26029832]
[1747362905488,5.7689,173.31,173.22,9.26029832]
[1747362905685,64.66,173.3,173.22,9.26029832]
[1747362905887,64.66,173.3,173.27,5.7697]
[1747362906085,64.66,173.3,173.22,9.26029832]
[1747362907087,64.66,173.3,173.26,5.77]
[1747362907289,70.4291,173.3,173.26,5.77]
[1747362907487,64.66,173.3,173.22,9.26029832]
[1747362908888,70.429,173.3,173.26,5.7701]
[1747362909085,70.429,173.3,173.22,9.26029832]
[1747362909387,70.429,173.3,173.26,5.7702]
[1747362909587,64.66,173.3,173.26,5.7702]
[1747362911989,70.429,173.3,173.26,5.7702]
[1747362912390,70.429,173.3,173.27,5.7699]
[1747362912889,64.66,173.3,173.21,1.945]
[1747362913091,64.66,173.3,173.18,64.68]
[1747362913389,64.66,173.3,173.19,1.44318221]
[1747362913592,64.66,173.3,173.18,64.68]
[1747362913790,64.66,173.3,173.19,1.44314058]
[1747362913991,64.66,173.3,173.18,64.68]
[1747362914193,5.7697,173.28,173.24,5.7707]
[1747362914388,64.66,173.3,173.2,5.40069832]
[1747362914588,64.66,173.3,173.21,1.8783]
[1747362915389,64.66,173.3,173.2,5.40069832]
[1747362915588,64.66,173.3,173.2,6.84385602]
[1747362915888,64.66,173.3,173.2,5.40069832]
[1747362916083,64.66,173.3,173.18,64.68]
[1747362916295,5.6532,173.29,173.18,64.68]
[1747362916493,5.7712,173.24,173.2,5.772]
[1747362916695,70.3312,173.24,173.2,5.772]
[1747362917194,64.56,173.24,173.18,1.44328965]
[1747362917393,64.56,173.24,173.19,1.44324024]
[1747362917692,64.56,173.24,173.23,5.7713]
[1747362918292,64.56,173.24,173.18,1.44316954]
[1747362918487,64.56,173.24,173.19,1.44316954]
[1747362918686,64.56,173.24,173.17,9.30379832]
[1747362919095,64.56,173.24,173.17,1.9308]
[1747362919494,64.56,173.24,173.17,7.33149832]
[1747362919690,64.56,173.24,173.18,1.44334182]
[1747362919889,64.56,173.24,173.21,5.7717]
[1747362920784,64.56,173.24,173.22,5.7716]
[1747362921092,64.68,173.29,173.2,70.08069832]
[1747362921294,129.2,173.29,173.21,1.44330452]
[1747362921485,129.2,173.29,173.2,70.08069832]
[1747362921687,64.68,173.29,173.21,1.44300671]
[1747362921887,64.68,173.29,173.22,1.44297886]
[1747362922088,64.68,173.29,173.2,70.08069832]
[1747362922293,64.68,173.29,173.21,1.44298659]
[1747362922493,64.68,173.29,173.22,1.44298659]
[1747362922696,64.68,173.29,173.2,70.08069832]
[1747362922893,64.68,173.29,173.26,5.7701]
[1747362923391,64.68,173.29,173.27,5.7698]
[1747362925487,64.68,173.29,173.22,1.4429249]
[1747362925798,64.68,173.29,173.19,64.68]
[1747362926299,64.68,173.29,173.2,1.44317952]
[1747362926499,5.7712,173.24,173.2,5.7722]
[1747362926797,129.14,173.24,173.17,1.8974]
[1747362926991,129.14,173.24,173.15,64.68]
[1747362927298,5.7723,173.21,173.17,5.7732]
[1747362927499,129.14,173.24,173.17,5.7732]
[1747362928795,129.14,173.24,173.16,5.7736]
[1747362929001,129.14,173.24,173.15,64.68]
[1747362929302,129.14,173.24,173.16,1.44354574]
[1747362929602,129.14,173.24,173.15,64.68]
[1747362929794,5.7724,173.2,173.16,1.4435429]
[1747362929995,129.14,173.24,173.16,5.7734]
[1747362930199,129.14,173.24,173.15,64.68]
[1747362930496,129.14,173.24,173.19,5.7724]
[1747362931097,5.7713,173.23,173.19,5.7724]
[1747362931696,5.7717,173.22,173.19,5.7724]
[1747362932096,129.14,173.24,173.2,5.7723]
[1747362932400,64.42,173.25,173.15,64.68]
[1747362932696,64.42,173.27,173.18,1.9835]
[1747362932893,64.42,173.27,173.19,3.26762819]
[1747362933103,64.42,173.27,173.2,65.86332819]
[1747362933295,64.42,173.27,173.21,1.44332819]
[1747362933495,64.42,173.27,173.22,1.44332819]
[1747362933701,64.42,173.27,173.23,1.44300282]
[1747362933894,5.7704,173.26,173.22,5.7716]
[1747362934095,64.42,173.27,173.2,64.42]
[1747362934495,64.42,173.27,173.21,1.44305602]
[1747362934690,64.42,173.27,173.22,1.44305602]
[1747362934998,70.19,173.27,173.22,5.7716]
[1747362935299,70.19,173.27,173.2,64.42]
[1747362935598,64.42,173.27,173.21,1.44301036]
[1747362935795,64.42,173.27,173.22,1.44301036]
[1747362935997,64.42,173.27,173.23,1.44301036]
[1747362936198,64.42,173.27,173.25,5.7705]
[1747362938304,64.42,173.27,173.23,5.7711]
[1747362938603,64.42,173.27,173.2,64.42]
[1747362938798,64.42,173.27,173.21,1.44301746]
[1747362938999,70.1901,173.27,173.23,5.7713]
[1747362939200,70.1901,173.27,173.2,64.42]
[1747362939399,70.1901,173.27,173.21,1.44306667]